bitfinex/quotes_BTCUSD_20241229
["timestamp","ask_amount","ask_price","bid_price","bid_amount"]
[1735483830913,0.001,94525.0,94524.0,0.0288293]
[1735483831696,0.001,94525.0,94524.0,0.0298293]
[1735483832126,0.09434772,94525.0,94524.0,0.0298293]
[1735483832278,0.09443312,94525.0,94524.0,0.0298293]
[1735483832479,0.09443312,94525.0,94524.0,0.0288293]
[1735483832680,0.09443312,94525.0,94524.0,0.00758527]
[1735483832910,0.0060854,94525.0,94524.0,0.00858527]
[1735483833115,0.0010854,94525.0,94524.0,0.00758527]
[1735483833520,0.0060854,94525.0,94524.0,0.00758527]
[1735483834358,0.0050854,94525.0,94524.0,0.00758527]
[1735483834571,0.09847051,94525.0,94524.0,0.00758527]
[1735483834776,0.10047051,94525.0,94524.0,0.00758527]
[1735483835155,0.09847051,94525.0,94509.0,0.098]
[1735483835453,0.09847051,94525.0,94510.0,0.10398632]
[1735483835802,0.0070854,94525.0,94510.0,0.10398632]
[1735483836490,0.0020854,94525.0,94517.0,0.0488]
[1735483836698,0.0070854,94525.0,94518.0,0.10398632]
[1735483837121,0.0020854,94525.0,94518.0,0.10398632]
[1735483837632,0.02092742,94519.0,94518.0,0.10398632]
[1735483838703,0.02092742,94519.0,94517.0,0.0488]
[1735483838704,0.0375198,94519.0,94517.0,0.0488]
[1735483838906,0.0375198,94519.0,94511.0,0.0817]
[1735483839104,0.0375198,94519.0,94512.0,0.10398632]
[1735483839532,0.0375198,94519.0,94518.0,0.003]
[1735483839664,0.0375198,94519.0,94512.0,0.10398632]
[1735483840268,0.15426444,94539.0,94512.0,0.10398632]
[1735483840497,0.09340399,94531.0,94512.0,0.10398632]
[1735483841354,0.00015246,94533.0,94512.0,0.10398632]
[1735483841526,0.02136646,94514.0,94512.0,0.10398632]
[1735483842747,0.02136646,94514.0,94512.0,0.10698632]
[1735483843346,0.01211623,94552.0,94512.0,0.10698632]
[1735483843547,0.01211623,94552.0,94511.0,0.0817]
[1735483843548,0.00050808,94547.0,94511.0,0.0817]
[1735483843727,0.11564738,94546.0,94511.0,0.0817]
[1735483843929,0.11564738,94546.0,94512.0,0.005]
[1735483844128,0.001,94531.0,94512.0,0.005]
[1735483845153,0.001,94531.0,94512.0,0.0051706]
[1735483845574,8.53e-05,94525.0,94512.0,0.0001706]
[1735483846140,8.53e-05,94525.0,94512.0,0.0011706]
[1735483846522,8.53e-05,94525.0,94514.0,0.0785]
[1735483846837,8.53e-05,94525.0,94515.0,0.10398632]
[1735483846951,0.0010853,94525.0,94515.0,0.10398632]
[1735483847350,0.0010853,94525.0,94517.0,0.1]
[1735483847557,0.0010853,94525.0,94520.0,0.1]
[1735483847801,0.0010853,94525.0,94521.0,0.10398632]
[1735483848912,0.02147763,94522.0,94521.0,0.10398632]
[1735483849328,8.53e-05,94525.0,94521.0,0.14715495]
[1735483850459,8.53e-05,94525.0,94521.0,0.10398632]
[1735483850624,8.53e-05,94525.0,94524.0,0.0785]
[1735483850844,8.53e-05,94525.0,94524.0,0.18248632]
[1735483851046,8.53e-05,94525.0,94524.0,0.43168632]
[1735483851241,0.00050808,94547.0,94524.0,0.30398632]
[1735483851446,0.00050808,94547.0,94540.0,0.1277]
[1735483851644,0.00050808,94547.0,94541.0,0.10398632]
[1735483853056,0.02112947,94542.0,94541.0,0.10398632]
[1735483853488,0.00050808,94547.0,94546.0,0.1]
[1735483853688,0.00350808,94547.0,94546.0,0.30398632]
[1735483854025,0.00150808,94547.0,94546.0,0.30398632]
[1735483854189,0.00150808,94547.0,94546.0,0.34708495]
[1735483854370,0.00050808,94547.0,94546.0,0.34608495]
[1735483855357,0.00050808,94547.0,94546.0,0.34708495]
[1735483856116,0.00050808,94547.0,94546.0,0.30398632]
[1735483856945,0.00050808,94547.0,94546.0,0.30298632]
[1735483857118,0.00050808,94547.0,94546.0,0.30398632]
[1735483857709,0.00050808,94547.0,94546.0,0.42808632]
[1735483858079,0.00050808,94547.0,94546.0,0.42708632]
[1735483858260,0.00050808,94547.0,94546.0,0.42808632]
[1735483858697,0.00050808,94547.0,94546.0,0.42708632]
[1735483859267,0.00050808,94547.0,94546.0,0.46979495]
[1735483859508,0.00050808,94547.0,94546.0,0.42708632]
[1735483860184,0.00050808,94547.0,94546.0,0.43008632]
[1735483860606,0.00050808,94547.0,94546.0,0.42708632]
[1735483861054,0.00050808,94547.0,94546.0,0.43008632]
[1735483861195,0.00050808,94547.0,94546.0,0.42808632]
[1735483861936,0.00050808,94547.0,94546.0,0.47289495]
[1735483862312,0.00050808,94547.0,94546.0,0.47389495]
[1735483862901,0.00050808,94547.0,94546.0,0.43008632]
[1735483863102,0.00050808,94547.0,94546.0,0.43108632]
[1735483863571,8.53e-05,94552.0,94546.0,0.43108632]
[1735483863781,8.53e-05,94556.0,94554.0,0.1778]
[1735483863935,8.53e-05,94556.0,94555.0,0.20398632]
[1735483865124,8.53e-05,94556.0,94555.0,0.21766346]
[1735483865235,8.53e-05,94556.0,94555.0,0.20198632]
[1735483865669,8.53e-05,94556.0,94555.0,0.42998632]
[1735483866073,0.11838048,94653.0,94555.0,0.15518632]
[1735483866295,0.021694,94603.0,94570.0,0.0778]
[1735483866496,0.021694,94603.0,94571.0,0.10398632]
[1735483866653,0.021694,94603.0,94572.0,0.02817863]
[1735483866888,0.021694,94603.0,94573.0,0.10398632]
[1735483867323,0.09324041,94599.0,94573.0,0.10398632]
[1735483867704,0.09324041,94599.0,94574.0,0.0492]
[1735483867925,0.09324041,94599.0,94575.0,0.10398632]
[1735483868514,0.09324041,94602.0,94575.0,0.10398632]
[1735483868709,0.02131566,94576.0,94575.0,0.28178632]
[1735483868934,0.09324041,94602.0,94584.0,0.098]
[1735483869131,0.09324041,94602.0,94575.0,0.28178632]
[1735483869132,0.006,94599.0,94586.0,0.098]
[1735483869337,0.015,94599.0,94587.0,0.10398632]
[1735483869539,0.015,94599.0,94593.0,0.1]
[1735483869874,0.02167055,94599.0,94598.0,0.098]
[1735483870055,0.02167055,94599.0,94598.0,0.20198632]
[1735483870214,0.02167055,94599.0,94598.0,0.19898632]
[1735483870554,0.02167055,94599.0,94598.0,0.19498632]
[1735483870940,0.02167055,94599.0,94598.0,0.09698632]
[1735483871140,0.02167055,94599.0,94598.0,0.19498632]
[1735483871350,0.00015245,94603.0,94602.0,0.1]
[1735483871546,0.00015245,94603.0,94602.0,0.20398632]
[1735483871921,0.00015245,94603.0,94602.0,0.20198632]
[1735483872125,0.01672976,94603.0,94602.0,0.10398632]
[1735483872336,0.0040853,94599.0,94588.0,0.0492]
[1735483872530,8.53e-05,94599.0,94588.0,0.0492]
[1735483872729,8.53e-05,94599.0,94585.0,0.0778]
[1735483874453,8.53e-05,94599.0,94586.0,0.12156632]
[1735483875093,0.02170647,94594.0,94590.0,0.098]
[1735483875386,8.53e-05,94599.0,94592.0,0.098]
[1735483875598,8.53e-05,94599.0,94593.0,0.10398632]
[1735483876192,8.53e-05,94599.0,94596.0,0.098]
[1735483876399,8.53e-05,94599.0,94598.0,0.0492]
[1735483877203,8.53e-05,94599.0,94598.0,0.32898632]
[1735483878007,8.53e-05,94599.0,94598.0,0.23098632]
[1735483878951,8.53e-05,94599.0,94598.0,0.32898632]
[1735483879925,8.53e-05,94599.0,94598.0,0.33498632]
[1735483880353,8.53e-05,94599.0,94598.0,0.33298632]
[1735483880485,8.53e-05,94599.0,94598.0,0.42698632]
[1735483880691,0.0010853,94599.0,94598.0,0.43398632]
[1735483880894,0.0010853,94599.0,94598.0,0.43698632]
[1735483883054,0.09107068,94666.0,94604.0,0.1]
[1735483883277,0.01657728,94631.0,94605.0,0.04409863]
[1735483883506,0.02138705,94606.0,94604.0,0.1]
[1735483884269,0.02138705,94606.0,94604.0,0.101]
[1735483884647,0.02138705,94606.0,94604.0,0.102]
[1735483884887,0.02138705,94606.0,94604.0,0.101]
[1735483885507,0.02138705,94606.0,94605.0,0.10398632]
[1735483885674,0.01657724,94629.0,94605.0,0.14718495]
[1735483885894,8.53e-05,94631.0,94605.0,0.14718495]
[1735483886281,8.53e-05,94631.0,94605.0,0.10398632]
[1735483886684,0.02172851,94610.0,94605.0,0.10398632]
[1735483886888,0.02172851,94610.0,94607.0,0.1]
[1735483887982,0.02172851,94610.0,94608.0,0.10398632]
[1735483890557,0.02172851,94610.0,94608.0,0.10598632]
[1735483890812,8.53e-05,94631.0,94609.0,0.35699863]
[1735483891157,0.02121102,94620.0,94619.0,0.1]
[1735483891328,8.53e-05,94631.0,94619.0,0.20398632]
[1735483891471,8.53e-05,94631.0,94620.0,0.10398632]
[1735483891872,8.53e-05,94631.0,94621.0,0.0786]
[1735483892905,0.01657394,94629.0,94621.0,0.0786]
[1735483893448,0.0161177,94622.0,94621.0,0.0786]
[1735483893848,0.0161177,94622.0,94621.0,0.1264]
[1735483894142,0.0080853,94631.0,94621.0,0.23038632]
[1735483894350,0.0080853,94631.0,94622.0,0.10398632]
[1735483894781,0.02093052,94624.0,94622.0,0.10398632]
[1735483895534,0.02093052,94624.0,94623.0,0.1]
[1735483895730,8.53e-05,94631.0,94624.0,0.1]
[1735483895933,8.53e-05,94631.0,94624.0,0.20398632]
[1735483897044,0.02160693,94625.0,94624.0,0.20398632]
[1735483898165,0.02160693,94625.0,94624.0,0.1]
[1735483899614,8.53e-05,94631.0,94624.0,0.1]
[1735483900021,8.53e-05,94631.0,94624.0,0.20398632]
[1735483900352,0.02069516,94629.0,94626.0,0.1]
[1735483900755,0.02069516,94629.0,94627.0,0.13303863]
[1735483901108,0.0010853,94631.0,94627.0,0.13303863]
[1735483901513,0.0010853,94631.0,94630.0,0.2]
[1735483901794,0.0010853,94631.0,94630.0,0.38787968]
[1735483901943,0.0010853,94631.0,94630.0,0.38728632]
[1735483902123,8.53e-05,94631.0,94630.0,0.43393882]
[1735483902331,0.01665493,94631.0,94630.0,0.43393882]
[1735483902526,0.01665493,94631.0,94630.0,0.43293882]
[1735483902752,0.01965493,94631.0,94630.0,0.43293882]
[1735483902955,0.01965493,94631.0,94630.0,0.38628632]
[1735483903153,0.01665493,94631.0,94630.0,0.38628632]
[1735483903634,0.01665493,94631.0,94630.0,0.39228632]
[1735483903792,8.53e-05,94631.0,94630.0,0.43848632]
[1735483903994,8.53e-05,94631.0,94630.0,0.44148632]
[1735483904223,8.53e-05,94631.0,94630.0,0.48893882]
[1735483905040,7e-05,94672.0,94654.0,0.099]
[1735483905241,7e-05,94672.0,94661.0,0.0833]
[1735483905447,0.00057798,94672.0,94662.0,0.10398632]
[1735483906385,0.02660273,94672.0,94665.0,0.1]
[1735483906622,0.00057798,94672.0,94668.0,0.1]
[1735483907798,0.00057798,94672.0,94671.0,0.199]
[1735483907993,0.0020853,94697.0,94689.0,0.1295]
[1735483908194,0.0020853,94697.0,94681.0,0.099]
[1735483908195,0.0020853,94697.0,94696.0,0.1]
[1735483908412,0.0020853,94697.0,94696.0,0.43248632]
[1735483908655,0.0213152,94724.0,94718.0,0.1]
[1735483908909,0.0213152,94724.0,94719.0,0.0833]
[1735483909145,0.09053661,94730.0,94720.0,0.20398632]
[1735483909373,0.09053661,94730.0,94723.0,0.1]
[1735483909600,0.09053661,94730.0,94728.0,0.1]
[1735483909802,0.09068879,94730.0,94729.0,0.1]
[1735483910004,0.00015218,94730.0,94729.0,0.1]
[1735483910212,0.02170216,94730.0,94729.0,0.22438495]
[1735483910460,0.00015218,94730.0,94729.0,0.1]
[1735483911342,0.01670752,94730.0,94729.0,0.30298632]
[1735483911569,0.01679272,94730.0,94729.0,0.20398632]
[1735483911814,0.01679272,94730.0,94729.0,0.30298632]
[1735483912017,0.01979272,94730.0,94729.0,0.30298632]
[1735483912358,0.01979272,94730.0,94729.0,0.20398632]
[1735483912566,0.01679272,94730.0,94729.0,0.20398632]
[1735483913110,0.01679272,94730.0,94721.0,0.1462]
[1735483913262,0.01679272,94730.0,94721.0,0.0462]
[1735483913497,0.01679272,94730.0,94729.0,0.002]
[1735483913690,0.01679272,94730.0,94706.0,0.0482]
[1735483913691,0.001,94728.0,94706.0,0.0482]
[1735483913895,0.001,94726.0,94706.0,0.0482]
[1735483914256,0.001,94723.0,94700.0,0.1]
[1735483914458,0.001,94722.0,94695.0,0.1]
[1735483914614,0.001,94722.0,94692.0,0.0753]
[1735483914615,0.001,94721.0,94696.0,0.10398632]
[1735483915023,0.00023738,94730.0,94704.0,0.10398632]
[1735483915221,0.00023738,94730.0,94712.0,0.1]
[1735483915378,0.00023738,94730.0,94729.0,0.002]
[1735483915985,0.00023738,94730.0,94713.0,0.10398632]
[1735483916204,0.02693199,94730.0,94713.0,0.10398632]
[1735483916473,0.002,94726.0,94713.0,0.10398632]
[1735483916639,0.002,94726.0,94714.0,0.03029863]
[1735483916844,0.02093199,94730.0,94714.0,0.03029863]
[1735483917048,0.02293199,94730.0,94729.0,0.001]
[1735483917222,0.02793199,94730.0,94729.0,0.10498632]
[1735483917425,0.00723738,94730.0,94729.0,0.20398632]
[1735483917653,0.00523738,94730.0,94729.0,0.10398632]
[1735483918028,0.00523738,94730.0,94729.0,0.20398632]
[1735483918427,0.00523738,94730.0,94729.0,0.19998632]
[1735483918634,0.00023738,94730.0,94729.0,0.29898632]
[1735483918835,0.00423738,94730.0,94729.0,0.29898632]
[1735483919800,0.00023738,94730.0,94729.0,0.29898632]
[1735483920261,0.00023738,94730.0,94729.0,0.29998632]
[1735483920393,0.00023738,94730.0,94729.0,0.34533495]
[1735483920798,0.00023738,94730.0,94729.0,0.34233495]
[1735483921430,0.00023738,94730.0,94729.0,0.30398632]
[1735483921641,0.00023738,94730.0,94729.0,0.20498632]
[1735483922659,0.00023738,94730.0,94729.0,0.30398632]
[1735483924690,0.00023738,94730.0,94729.0,0.20498632]
[1735483924897,0.00023738,94730.0,94729.0,0.29998632]
[1735483925192,0.00023738,94730.0,94729.0,0.30098632]
[1735483925534,0.00023738,94730.0,94729.0,0.34343495]
[1735483925738,0.00023738,94730.0,94729.0,0.30098632]
[1735483925937,0.00013084,94730.0,94729.0,0.29898632]
[1735483926389,0.00013084,94730.0,94729.0,0.30098632]
[1735483927511,0.00013084,94730.0,94729.0,0.52011432]
[1735483927721,0.00013084,94730.0,94729.0,0.30898632]
[1735483927895,0.00013084,94730.0,94729.0,0.39446245]
[1735483928092,0.00013084,94730.0,94729.0,0.30098632]
[1735483928347,0.00013084,94730.0,94729.0,0.30798632]
[1735483928765,0.00013084,94730.0,94729.0,0.29898632]
[1735483928968,0.0141806,94739.0,94736.0,0.1]
[1735483929141,0.0141806,94739.0,94737.0,0.10398632]
[1735483929343,0.0141806,94739.0,94737.0,0.20398632]
[1735483929543,0.0141806,94739.0,94738.0,0.099]
[1735483929744,0.0141806,94739.0,94738.0,0.30298632]
[1735483930590,0.0141806,94739.0,94738.0,0.37828632]
[1735483931249,0.0141806,94739.0,94738.0,0.42648632]
[1735483931470,8.52e-05,94761.0,94747.0,0.199]
[1735483931689,8.52e-05,94761.0,94747.0,0.48860542]
[1735483932618,8.52e-05,94761.0,94747.0,0.38860542]
[1735483932792,8.52e-05,94761.0,94747.0,0.48860542]
[1735483933291,8.52e-05,94761.0,94760.0,0.2743]
[1735483933518,0.00023735,94761.0,94760.0,0.37828632]
[1735483933712,0.00023735,94761.0,94760.0,0.43722235]
[1735483934118,0.00023735,94761.0,94760.0,0.37828632]
[1735483935015,0.00023735,94761.0,94760.0,0.36328632]
[1735483935193,0.00023735,94761.0,94760.0,0.36628632]
[1735483936412,0.00023735,94761.0,94760.0,0.37428632]
[1735483936972,0.00023735,94761.0,94760.0,0.17528632]
[1735483937611,0.00023735,94761.0,94760.0,0.31171495]
[1735483937822,0.00023735,94761.0,94760.0,0.41171495]
[1735483938144,0.01678608,94761.0,94760.0,0.67097395]
[1735483938394,0.02077228,94790.0,94762.0,0.3743]
[1735483938589,0.02077228,94790.0,94762.0,0.47828632]
[1735483938854,0.02077228,94790.0,94762.0,0.58227264]
[1735483939059,0.02077228,94790.0,94768.0,0.299]
[1735483939267,7e-05,94800.0,94797.0,0.1]
[1735483939474,7e-05,94800.0,94797.0,0.42648632]
[1735483939680,0.00250707,94798.0,94797.0,0.42648632]
[1735483939785,0.00250707,94798.0,94797.0,0.46913495]
[1735483940622,0.00250707,94798.0,94797.0,0.47013495]
[1735483941456,0.00250707,94798.0,94797.0,0.57013495]
[1735483942086,7e-05,94800.0,94799.0,0.299]
[1735483942288,0.03534026,94833.0,94808.0,0.3225]
[1735483942289,0.0141806,94833.0,94808.0,0.3225]
[1735483942499,0.0141806,94833.0,94824.0,0.199]
[1735483942720,0.0141806,94833.0,94824.0,0.42648632]
[1735483943121,0.0141806,94833.0,94824.0,0.52648632]
[1735483943323,0.0141806,94833.0,94824.0,0.62648632]
[1735483943542,0.0141806,94833.0,94824.0,0.52648632]
[1735483943775,0.0141806,94833.0,94824.0,0.42648632]
[1735483944130,0.0141806,94833.0,94824.0,0.53548632]
[1735483944380,0.0141806,94833.0,94824.0,0.43548632]
[1735483945336,0.0141806,94833.0,94824.0,0.43948632]
[1735483945538,0.0141806,94833.0,94832.0,0.1]
[1735483945805,0.0141806,94833.0,94832.0,0.30298632]
[1735483946152,0.0141806,94833.0,94832.0,0.10398632]
[1735483946358,0.0141806,94833.0,94832.0,0.20398632]
[1735483946564,0.0141806,94833.0,94824.0,0.1365]
[1735483946565,0.0141806,94833.0,94824.0,0.2275]
[1735483946770,0.0141806,94833.0,94824.0,0.004]
[1735483947029,0.0141806,94833.0,94832.0,0.009]
[1735483947694,0.0141806,94833.0,94801.0,0.099]
[1735483947904,0.0151806,94833.0,94802.0,0.20398632]
[1735483948075,0.001,94825.0,94802.0,0.1]
[1735483948920,0.001,94824.0,94798.0,0.00015206]
[1735483949114,0.001,94822.0,94798.0,0.00015206]
[1735483949331,0.02128337,94805.0,94798.0,0.00015206]
[1735483950122,0.001,94822.0,94798.0,0.00015206]
[1735483950297,0.01653986,94826.0,94799.0,0.10398632]
[1735483950652,0.02128971,94817.0,94801.0,0.001]
[1735483950814,0.02128971,94817.0,94802.0,0.10398632]
[1735483951587,0.01654172,94814.0,94813.0,0.1]
[1735483951791,0.01654172,94814.0,94813.0,0.20398632]
[1735483952001,0.002,94817.0,94813.0,0.20398632]
[1735483952203,0.002,94817.0,94801.0,0.1]
[1735483952467,0.02158596,94824.0,94802.0,0.10398632]
[1735483952667,0.01653937,94823.0,94798.0,0.00015206]
[1735483952877,0.001,94822.0,94798.0,0.00015206]
[1735483954290,0.001,94814.0,94798.0,0.00015206]
[1735483954608,0.02153542,94804.0,94798.0,0.00015206]
[1735483955368,0.02153542,94804.0,94802.0,0.1]
[1735483955603,0.001,94830.0,94803.0,0.10398632]
[1735483955728,0.003,94822.0,94803.0,0.13430016]
[1735483955939,0.003,94822.0,94814.0,0.099]
[1735483956137,0.02097667,94817.0,94815.0,0.10398632]
[1735483956544,0.003,94822.0,94815.0,0.10398632]
[1735483957216,0.003,94822.0,94811.0,0.1]
[1735483957430,0.003,94822.0,94816.0,0.10398632]
[1735483957630,0.01654048,94821.0,94812.0,0.10398632]
[1735483958038,0.03769493,94821.0,94812.0,0.10398632]
[1735483958353,0.03769493,94821.0,94812.0,0.13428495]
[1735483958554,0.03769493,94821.0,94820.0,0.199]
[1735483958555,0.01654048,94821.0,94820.0,0.199]
[1735483958872,0.01654048,94821.0,94820.0,0.30298632]
[1735483959303,0.01654048,94821.0,94820.0,0.34898632]
[1735483959476,0.01654048,94821.0,94820.0,0.42758632]
[1735483959675,0.01854048,94821.0,94820.0,0.50143855]
[1735483959925,0.01854048,94821.0,94820.0,0.91236355]
[1735483960646,0.0142657,94833.0,94832.0,0.199]
[1735483960804,0.0142657,94833.0,94832.0,0.30098632]
[1735483960999,0.0142657,94833.0,94832.0,0.65198395]
[1735483961208,0.0016384,94859.0,94848.0,0.4216]
[1735483961410,0.0016384,94859.0,94848.0,0.52458632]
[1735483961791,0.0016384,94859.0,94848.0,0.42458632]
[1735483961993,0.00245703,94849.0,94848.0,0.81899585]
[1735483962253,0.00245703,94849.0,94848.0,0.60813285]
[1735483963104,0.00245703,94849.0,94848.0,0.50813285]
[1735483963300,0.00245703,94849.0,94848.0,0.81899585]
[1735483963914,0.00245703,94849.0,94848.0,0.50813285]
[1735483964127,0.00245703,94849.0,94848.0,0.60813285]
[1735483964330,0.00245703,94849.0,94848.0,0.61213285]
[1735483964445,0.00245703,94849.0,94848.0,0.52858632]
[1735483964644,0.00245703,94849.0,94848.0,0.32858632]
[1735483964855,0.00245703,94849.0,94848.0,0.42458632]
[1735483965331,0.00345703,94849.0,94848.0,0.43158632]
[1735483965729,0.00345703,94849.0,94848.0,0.53158632]
[1735483965938,0.00345703,94849.0,94848.0,0.60583225]
[1735483967344,0.00345703,94849.0,94848.0,0.43158632]
[1735483967661,0.00345703,94849.0,94848.0,0.44058632]
[1735483969098,0.00345703,94849.0,94848.0,0.31598632]
[1735483969302,0.00245703,94849.0,94848.0,0.30898632]
[1735483969500,0.00245703,94849.0,94848.0,0.29998632]
[1735483969712,0.00245703,94849.0,94848.0,0.19998632]
[1735483970389,0.00245703,94849.0,94848.0,0.10398632]
[1735483970609,0.00245703,94849.0,94830.0,0.1]
[1735483970804,0.00245703,94849.0,94831.0,0.10398632]
[1735483971035,0.04037045,94849.0,94843.0,0.096]
[1735483971163,0.04037045,94849.0,94848.0,0.004]
[1735483971351,0.04037045,94849.0,94828.0,0.1]
[1735483971561,0.04037045,94849.0,94832.0,0.096]
[1735483971764,0.04037045,94849.0,94835.0,0.096]
[1735483971986,0.04037045,94849.0,94846.0,0.096]
[1735483972189,0.01998998,94849.0,94848.0,0.105]
[1735483972359,0.00345703,94849.0,94848.0,0.30898632]
[1735483972558,0.00245703,94849.0,94848.0,0.29998632]
[1735483973217,0.00845703,94849.0,94848.0,0.29998632]
[1735483973618,0.00845703,94849.0,94848.0,0.20398632]
[1735483973817,0.00245703,94849.0,94848.0,0.20398632]
[1735483974041,0.00545703,94849.0,94848.0,0.20398632]
[1735483974260,0.00545703,94849.0,94848.0,0.20415692]
[1735483974459,0.00254233,94849.0,94848.0,0.20415692]
[1735483974700,0.00254233,94849.0,94848.0,0.0001706]
[1735483974901,0.00454233,94849.0,94848.0,0.0001706]
[1735483975264,0.00254233,94849.0,94848.0,0.0001706]
[1735483975465,0.00254233,94849.0,94848.0,0.30015692]
[1735483975688,0.00454233,94849.0,94848.0,0.20415692]
[1735483975895,0.00454233,94849.0,94848.0,0.30015692]
[1735483976478,0.00454233,94849.0,94848.0,0.20415692]
[1735483976680,0.00454233,94849.0,94848.0,0.30015692]
[1735483977502,0.07603282,94914.0,94855.0,0.1]
[1735483977711,0.00050689,94898.0,94856.0,0.10298632]
[1735483977930,0.10398632,94897.0,94857.0,0.02029863]
[1735483978072,0.00050689,94898.0,94864.0,0.1]
[1735483978281,0.00050689,94898.0,94865.0,0.10198632]
[1735483978735,0.10398632,94897.0,94865.0,0.10198632]
[1735483978933,0.10398632,94897.0,94857.0,0.12029863]
[1735483979167,0.10398632,94897.0,94858.0,0.12051618]
[1735483979168,0.01044932,94896.0,94858.0,0.12051618]
[1735483979366,0.02076141,94866.0,94858.0,0.12051618]
[1735483979569,0.02076141,94866.0,94862.0,0.1]
[1735483979817,0.02076141,94866.0,94856.0,0.001]
[1735483979818,0.02076141,94866.0,94865.0,0.1]
[1735483980037,0.02076141,94866.0,94865.0,0.20398632]
[1735483980236,0.007,94898.0,94867.0,0.1]
[1735483980449,0.007,94898.0,94868.0,0.10398632]
[1735483980613,0.02105338,94872.0,94869.0,0.03039863]
[1735483980817,0.00750689,94898.0,94878.0,0.1]
[1735483981017,0.00750689,94898.0,94879.0,0.10398632]
[1735483981221,0.00050689,94898.0,94879.0,0.10398632]
[1735483981800,0.009,94896.0,94879.0,0.10398632]
[1735483982028,0.009,94896.0,94881.0,0.1]
[1735483982192,0.009,94896.0,94882.0,0.10398632]
[1735483982387,0.01652874,94895.0,94882.0,0.10398632]
[1735483983075,0.01652874,94895.0,94893.0,0.1]
[1735483983249,0.00050689,94898.0,94894.0,0.10398632]
[1735483983469,0.00050689,94898.0,94893.0,0.1]
[1735483983759,0.02104576,94895.0,94893.0,0.1]
[1735483983954,0.02104576,94895.0,94894.0,0.10398632]
[1735483984175,0.02104576,94895.0,94892.0,0.1]
[1735483984372,0.02104576,94895.0,94894.0,0.10398632]
[1735483985893,0.02604576,94895.0,94892.0,0.1]
[1735483986296,0.02604576,94895.0,94893.0,0.11398632]
[1735483986533,0.02104576,94895.0,94893.0,0.11398632]
[1735483986938,0.02404576,94895.0,94893.0,0.10398632]
[1735483987310,0.02408645,94895.0,94893.0,0.10398632]
[1735483987720,0.02108645,94895.0,94893.0,0.10398632]
[1735483988339,0.02108645,94895.0,94894.0,0.1]
[1735483988543,0.02108645,94895.0,94894.0,0.20398632]
[1735483988848,0.02108645,94895.0,94894.0,0.23438495]
[1735483989027,0.02108645,94895.0,94894.0,0.20398632]
[1735483989244,0.00304069,94895.0,94894.0,0.30398632]
[1735483989462,0.00304069,94895.0,94894.0,0.35008632]
[1735483989812,4.069e-05,94895.0,94894.0,0.35008632]
[1735483990012,4.069e-05,94895.0,94894.0,0.38509495]
[1735483990013,0.00104069,94895.0,94894.0,0.38509495]
[1735483990438,4.069e-05,94895.0,94894.0,0.38509495]
[1735483990649,4.069e-05,94895.0,94894.0,0.35008632]
[1735483990851,0.00404069,94895.0,94894.0,0.35008632]
[1735483991218,0.00304069,94895.0,94894.0,0.35008632]
[1735483991624,0.00304069,94895.0,94894.0,0.35208632]
[1735483992425,0.00304069,94895.0,94894.0,0.38729495]
[1735483993066,0.00304069,94895.0,94894.0,0.35208632]
[1735483993269,4.069e-05,94895.0,94894.0,0.25208632]
[1735483993473,4.069e-05,94895.0,94894.0,0.35208632]
[1735483994062,4.069e-05,94895.0,94894.0,0.42998632]
[1735483996326,0.28387269,94895.0,94894.0,0.42998632]
[1735483996524,0.15577269,94895.0,94894.0,0.47298495]
[1735483997281,0.15577269,94895.0,94894.0,0.37298495]
[1735483997490,0.15577269,94895.0,94894.0,0.47298495]
[1735483997637,0.15577269,94895.0,94894.0,0.47098495]
[1735483998081,0.15577269,94895.0,94894.0,0.47298495]
[1735483998679,0.15577269,94895.0,94894.0,0.47098495]
[1735483999374,0.15577269,94895.0,94894.0,0.47898495]
[1735483999904,0.15577269,94895.0,94894.0,0.47398495]
[1735484000106,0.15914629,94895.0,94894.0,0.47398495]
[1735484000718,0.15914629,94895.0,94894.0,0.47698495]
[1735484002054,0.15914629,94895.0,94894.0,0.43398632]
[1735484002564,0.00059219,94898.0,94897.0,0.3]
[1735484002760,0.00059219,94898.0,94897.0,0.30398632]
[1735484003348,0.00059219,94898.0,94897.0,0.10398632]
[1735484003546,0.00059219,94898.0,94897.0,0.38188632]
[1735484003750,7e-05,94928.0,94927.0,0.2]
[1735484003947,0.00022199,94928.0,94927.0,0.43178632]
[1735484005358,0.00022199,94928.0,94927.0,0.43378632]
[1735484005763,0.00022199,94928.0,94927.0,0.43378568]
[1735484006601,0.00022199,94928.0,94927.0,0.53378568]
[1735484006829,0.00022199,94928.0,94927.0,0.72423445]
[1735484008369,0.00022199,94928.0,94927.0,0.72223445]
[1735484008850,0.00022199,94928.0,94927.0,0.72723445]
[1735484009049,0.00022199,94928.0,94927.0,0.64278568]
[1735484009222,0.00022199,94928.0,94927.0,0.63678568]
[1735484009802,0.00022199,94928.0,94927.0,0.64578568]
[1735484010835,0.00022199,94928.0,94927.0,0.44578568]
[1735484011043,0.00022199,94928.0,94927.0,0.34578568]
[1735484011409,0.00022199,94928.0,94927.0,0.44578568]
[1735484012470,0.00022199,94928.0,94927.0,0.39588568]
[1735484013199,0.00022199,94928.0,94927.0,0.21798568]
[1735484013352,0.00022199,94928.0,94927.0,0.31798568]
[1735484013776,0.00022199,94928.0,94927.0,0.31298568]
[1735484014098,0.00030729,94928.0,94927.0,0.30398568]
[1735484014319,0.00030729,94928.0,94927.0,0.34638425]
[1735484014757,0.00030729,94928.0,94927.0,0.30698568]
[1735484014967,0.00030729,94928.0,94927.0,0.31598568]
[1735484016292,0.00030729,94928.0,94927.0,0.21598568]
[1735484016498,0.00030729,94928.0,94927.0,0.20698568]
[1735484016712,0.00030729,94928.0,94927.0,0.20398568]
[1735484016915,0.00030729,94928.0,94927.0,0.31298568]
[1735484017147,0.00030729,94928.0,94927.0,0.21598632]
[1735484017353,0.00030729,94928.0,94927.0,0.11598632]
[1735484017545,0.00030729,94928.0,94927.0,0.11298632]
[1735484018116,0.00030729,94928.0,94927.0,0.003]
[1735484018515,0.00030729,94928.0,94927.0,0.012]
[1735484018698,0.10032183,94928.0,94927.0,0.012]
[1735484018901,0.10032183,94928.0,94903.0,0.1]
[1735484019095,0.10398632,94927.0,94903.0,0.1]
[1735484019880,0.09322679,94928.0,94904.0,0.10398632]
[1735484020014,0.09422679,94928.0,94904.0,0.10398632]
[1735484020528,0.09422679,94928.0,94869.0,0.03039863]
[1735484020529,0.10398632,94927.0,94889.0,0.09999936]
[1735484020730,0.10398632,94927.0,94895.0,0.10398632]
[1735484020946,0.10598632,94927.0,94895.0,0.10398632]
[1735484021145,0.10998632,94927.0,94895.0,0.10398632]
[1735484021348,0.10798632,94927.0,94895.0,0.10398632]
[1735484021759,0.10998632,94927.0,94895.0,0.10398632]